[Event "Titled Tuesday Blitz February 28 Late 2023"]
[White "Karttunen, Mika"]
[Black "Norowitz, Yaacov"]
[WhiteFideId "502081"]
[BlackFideId "2024799"]
[WhiteElo "2396"]
[BlackElo "2401"]
[Result "0-1"]
[Round "09"]
[TimeControl "180+2"]
[Date "2023.02.28"]
[WhiteClock "0:00:03"]
[BlackClock "0:01:13"]

1. e4 {[%clk 0:03:00]}  c6 {[%clk 0:02:50]} 2. d4 {[%clk 0:03:00]}  d5 {[%clk 0:02:51]} 3. e5 {[%clk 0:03:00]}  Bf5 {[%clk 0:02:51]} 4. h4 {[%clk 0:03:00]}  Qb6 {[%clk 0:02:42]} 5. Nc3 {[%clk 0:02:57]}  h6 {[%clk 0:02:42]} 6. g4 {[%clk 0:02:53]}  Bd7 {[%clk 0:02:40]} 7. h5 {[%clk 0:02:51]}  e6 {[%clk 0:02:40]} 8. Na4 {[%clk 0:02:17]}  Qc7 {[%clk 0:02:40]} 9. f4 {[%clk 0:02:06]}  Na6 {[%clk 0:02:39]} 10. Bxa6 {[%clk 0:01:44]}  Qa5+ {[%clk 0:02:38]} 11. c3 {[%clk 0:01:39]}  Qxa6 {[%clk 0:02:39]} 12. Nc5 {[%clk 0:01:32]}  Bxc5 {[%clk 0:02:38]} 13. dxc5 {[%clk 0:01:32]}  b6 {[%clk 0:02:37]} 14. Be3 {[%clk 0:01:26]}  Ne7 {[%clk 0:02:30]} 15. Nf3 {[%clk 0:01:23]}  Qc4 {[%clk 0:02:22]} 16. Qd4 {[%clk 0:01:13]}  Qb5 {[%clk 0:01:54]} 17. b4 {[%clk 0:01:06]}  bxc5 {[%clk 0:01:43]} 18. Qxc5 {[%clk 0:01:04]}  a5 {[%clk 0:01:43]} 19. a4 {[%clk 0:00:43]}  Qd3 {[%clk 0:01:40]} 20. Qd4 {[%clk 0:00:36]}  Qxd4 {[%clk 0:01:37]} 21. Bxd4 {[%clk 0:00:30]}  axb4 {[%clk 0:01:36]} 22. cxb4 {[%clk 0:00:25]}  c5 {[%clk 0:01:34]} 23. Bxc5 {[%clk 0:00:13]}  Bxa4 {[%clk 0:01:34]} 24. Nd4 {[%clk 0:00:12]}  Kd7 {[%clk 0:01:34]} 25. f5 {[%clk 0:00:12]}  Nc6 {[%clk 0:01:33]} 26. fxe6+ {[%clk 0:00:10]}  fxe6 {[%clk 0:01:33]} 27. Nxc6 {[%clk 0:00:10]}  Bxc6 {[%clk 0:01:28]} 28. Kf2 {[%clk 0:00:09]}  d4 {[%clk 0:01:25]} 29. Rhd1 {[%clk 0:00:09]}  Bd5 {[%clk 0:01:24]} 30. Rxa8 {[%clk 0:00:08]}  Rxa8 {[%clk 0:01:24]} 31. Bxd4 {[%clk 0:00:08]}  Ra2+ {[%clk 0:01:24]} 32. Ke3 {[%clk 0:00:07]}  Ra3+ {[%clk 0:01:23]} 33. Kd2 {[%clk 0:00:06]}  Rh3 {[%clk 0:01:21]} 34. Rg1 {[%clk 0:00:06]}  Be4 {[%clk 0:01:19]} 35. Be3 {[%clk 0:00:07]}  Kc6 {[%clk 0:01:19]} 36. Bc5 {[%clk 0:00:02]}  g6 {[%clk 0:01:17]} 37. hxg6 {[%clk 0:00:02]}  Bxg6 {[%clk 0:01:18]} 38. g5 {[%clk 0:00:03]}  h5 {[%clk 0:01:18]} 39. Ke2 {[%clk 0:00:02]}  Kd5 {[%clk 0:01:16]} 40. Kf2 {[%clk 0:00:02]}  Rb3 {[%clk 0:01:14]} 41. Rg3 {[%clk 0:00:02]}  Rb2+ {[%clk 0:01:14]} 42. Ke3 {[%clk 0:00:02]}  h4 {[%clk 0:01:14]} 43. Rg4 {[%clk 0:00:03]}  h3 {[%clk 0:01:14]} 44. Rh4 {[%clk 0:00:03]}  h2 {[%clk 0:01:13]} 45. Rh6 {[%clk 0:00:03]}  Be4 {[%clk 0:01:13]} 46. g6 {[%clk 0:00:03]}  h1=Q {[%clk 0:01:13]} 47. Rxh1 {[%clk 0:00:03]}  Bxh1 {[%clk 0:01:14]} 48. Kf4 {[%clk 0:00:03]}  Rg2 {[%clk 0:01:13]} 0-1


[Site "https://www.chess.com"]

[Event "Titled Tuesday Blitz February 28 Late 2023"]
[White "Lewtak, Damian"]
[Black "Prem, Pranav"]
[WhiteFideId "1141724"]
[BlackFideId "30901057"]
[WhiteElo "2302"]
[BlackElo "1970"]
[Result "0-1"]
[Round "09"]
[TimeControl "180+2"]
[Date "2023.02.28"]
[WhiteClock "0:00:53"]
[BlackClock "0:00:27"]

1. e4 {[%clk 0:03:00]}  c5 {[%clk 0:02:58]} 2. Nf3 {[%clk 0:03:01]}  d6 {[%clk 0:02:58]} 3. Bb5+ {[%clk 0:03:00]}  Nd7 {[%clk 0:02:57]} 4. O-O {[%clk 0:03:00]}  Nf6 {[%clk 0:02:50]} 5. Re1 {[%clk 0:02:59]}  a6 {[%clk 0:02:45]} 6. Bf1 {[%clk 0:02:59]}  g6 {[%clk 0:02:36]} 7. c3 {[%clk 0:02:58]}  Bg7 {[%clk 0:02:31]} 8. d4 {[%clk 0:02:58]}  O-O {[%clk 0:02:19]} 9. e5 {[%clk 0:02:58]}  Ne8 {[%clk 0:02:14]} 10. exd6 {[%clk 0:02:47]}  Nxd6 {[%clk 0:02:12]} 11. dxc5 {[%clk 0:02:46]}  Nxc5 {[%clk 0:02:13]} 12. Nbd2 {[%clk 0:02:45]}  b5 {[%clk 0:02:05]} 13. Nb3 {[%clk 0:02:37]}  Ne6 {[%clk 0:01:57]} 14. Nbd4 {[%clk 0:02:35]}  Nxd4 {[%clk 0:01:54]} 15. Nxd4 {[%clk 0:02:36]}  Bb7 {[%clk 0:01:55]} 16. Bg5 {[%clk 0:02:34]}  Re8 {[%clk 0:01:50]} 17. Qg4 {[%clk 0:02:32]}  Qc7 {[%clk 0:01:47]} 18. Rad1 {[%clk 0:02:31]}  Rad8 {[%clk 0:01:45]} 19. Qg3 {[%clk 0:02:19]}  Rd7 {[%clk 0:01:41]} 20. Bf4 {[%clk 0:02:16]}  Qb6 {[%clk 0:01:32]} 21. Nxb5 {[%clk 0:02:11]}  Nf5 {[%clk 0:01:16]} 22. Bc7 {[%clk 0:02:05]}  Qc6 {[%clk 0:01:00]} 23. Qf3 {[%clk 0:01:26]}  Rxd1 {[%clk 0:00:56]} 24. Qxd1 {[%clk 0:01:12]}  axb5 {[%clk 0:00:54]} 25. Ba5 {[%clk 0:01:12]}  Nh4 {[%clk 0:00:47]} 26. Qg4 {[%clk 0:01:10]}  Nf5 {[%clk 0:00:43]} 27. Bb4 {[%clk 0:01:10]}  e5 {[%clk 0:00:40]} 28. Bd3 {[%clk 0:01:04]}  e4 {[%clk 0:00:37]} 29. Bc2 {[%clk 0:00:58]}  e3 {[%clk 0:00:35]} 30. fxe3 {[%clk 0:00:54]}  Nxe3 {[%clk 0:00:34]} 31. Qf3 {[%clk 0:00:53]}  Nxc2 {[%clk 0:00:27]} 0-1


[Site "https://www.chess.com"]

[Event "Titled Tuesday Blitz February 28 Late 2023"]
[White "Aldokhin, Ivan"]
[Black "Remolar Gallen, Jose"]
[WhiteFideId "24115720"]
[BlackFideId "2215187"]
[WhiteElo "2322"]
[BlackElo "2223"]
[Result "1-0"]
[Round "09"]
[TimeControl "180+2"]
[Date "2023.02.28"]
[WhiteClock "0:00:02"]
[BlackClock "0:00:02"]

1. e4 {[%clk 0:02:58]}  c5 {[%clk 0:02:59]} 2. Nf3 {[%clk 0:02:59]}  d6 {[%clk 0:02:59]} 3. d4 {[%clk 0:03:00]}  cxd4 {[%clk 0:02:59]} 4. Nxd4 {[%clk 0:03:01]}  Nf6 {[%clk 0:03:00]} 5. Nc3 {[%clk 0:03:01]}  a6 {[%clk 0:03:00]} 6. Bc4 {[%clk 0:03:02]}  e6 {[%clk 0:02:59]} 7. Bb3 {[%clk 0:03:02]}  b5 {[%clk 0:02:53]} 8. O-O {[%clk 0:03:00]}  Be7 {[%clk 0:02:53]} 9. Qf3 {[%clk 0:02:58]}  Qc7 {[%clk 0:02:26]} 10. Re1 {[%clk 0:02:33]}  O-O {[%clk 0:02:19]} 11. Qg3 {[%clk 0:02:32]}  Nc6 {[%clk 0:02:09]} 12. Nxc6 {[%clk 0:02:23]}  Qxc6 {[%clk 0:02:10]} 13. Bh6 {[%clk 0:02:17]}  Ne8 {[%clk 0:02:09]} 14. Nd5 {[%clk 0:02:13]}  Bd8 {[%clk 0:01:59]} 15. a4 {[%clk 0:01:44]}  Bb7 {[%clk 0:01:37]} 16. Nf4 {[%clk 0:01:09]}  Kh8 {[%clk 0:01:34]} 17. Bg5 {[%clk 0:00:57]}  Bxg5 {[%clk 0:01:33]} 18. Qxg5 {[%clk 0:00:57]}  Nf6 {[%clk 0:01:32]} 19. f3 {[%clk 0:00:35]}  Qc5+ {[%clk 0:01:28]} 20. Qxc5 {[%clk 0:00:34]}  dxc5 {[%clk 0:01:29]} 21. c4 {[%clk 0:00:28]}  b4 {[%clk 0:01:10]} 22. Rad1 {[%clk 0:00:23]}  Rfd8 {[%clk 0:01:08]} 23. Kf2 {[%clk 0:00:21]}  Kg8 {[%clk 0:00:57]} 24. Ke3 {[%clk 0:00:18]}  Kf8 {[%clk 0:00:56]} 25. h4 {[%clk 0:00:17]}  Ke7 {[%clk 0:00:54]} 26. g4 {[%clk 0:00:17]}  Nd7 {[%clk 0:00:45]} 27. Nd3 {[%clk 0:00:17]}  a5 {[%clk 0:00:38]} 28. Rd2 {[%clk 0:00:17]}  Rac8 {[%clk 0:00:33]} 29. Red1 {[%clk 0:00:16]}  Nb6 {[%clk 0:00:30]} 30. Ne5 {[%clk 0:00:09]}  Rxd2 {[%clk 0:00:28]} 31. Rxd2 {[%clk 0:00:10]}  f6 {[%clk 0:00:24]} 32. Nd3 {[%clk 0:00:09]}  e5 {[%clk 0:00:22]} 33. f4 {[%clk 0:00:08]}  Ke6 {[%clk 0:00:22]} 34. fxe5 {[%clk 0:00:06]}  fxe5 {[%clk 0:00:23]} 35. Rf2 {[%clk 0:00:06]}  Nd7 {[%clk 0:00:15]} 36. g5 {[%clk 0:00:05]}  Rh8 {[%clk 0:00:10]} 37. Bd1 {[%clk 0:00:05]}  h5 {[%clk 0:00:07]} 38. Be2 {[%clk 0:00:05]}  g6 {[%clk 0:00:05]} 39. Bf1 {[%clk 0:00:05]}  Bc6 {[%clk 0:00:04]} 40. Bh3+ {[%clk 0:00:05]}  Kd6 {[%clk 0:00:05]} 41. Bxd7 {[%clk 0:00:05]}  Bxd7 {[%clk 0:00:05]} 42. Rf6+ {[%clk 0:00:05]}  Ke7 {[%clk 0:00:05]} 43. Rxg6 {[%clk 0:00:05]}  Bxa4 {[%clk 0:00:05]} 44. Nxc5 {[%clk 0:00:04]}  Be8 {[%clk 0:00:05]} 45. Re6+ {[%clk 0:00:04]}  Kf7 {[%clk 0:00:05]} 46. Ra6 {[%clk 0:00:03]}  a4 {[%clk 0:00:05]} 47. Ra7+ {[%clk 0:00:03]}  Kg6 {[%clk 0:00:05]} 48. Ne6 {[%clk 0:00:02]}  Bf7 {[%clk 0:00:02]} 49. Nc5 {[%clk 0:00:02]}  Rc8 {[%clk 0:00:02]} 50. Nd7 {[%clk 0:00:02]}  Bxc4 {[%clk 0:00:02]} 51. Nxe5# {[%clk 0:00:02]} 1-0


[Site "https://www.chess.com"]

[Event "Titled Tuesday Blitz February 28 Late 2023"]
[White "Sokac, Marko"]
[Black "Gerzhoy, Leonid"]
[WhiteFideId "14531356"]
[BlackFideId "2806126"]
[WhiteElo "2355"]
[BlackElo "2618"]
[Result "1/2-1/2"]
[Round "09"]
[TimeControl "180+2"]
[Date "2023.02.28"]
[WhiteClock "0:00:10"]
[BlackClock "0:01:20"]

1. e4 {[%clk 0:03:00]}  d6 {[%clk 0:02:59]} 2. Nc3 {[%clk 0:03:00]}  Nf6 {[%clk 0:02:58]} 3. d4 {[%clk 0:03:00]}  e5 {[%clk 0:02:58]} 4. Nf3 {[%clk 0:03:00]}  Nc6 {[%clk 0:02:57]} 5. h3 {[%clk 0:02:55]}  Be7 {[%clk 0:02:55]} 6. g4 {[%clk 0:02:56]}  O-O {[%clk 0:02:54]} 7. g5 {[%clk 0:02:56]}  Nh5 {[%clk 0:02:52]} 8. d5 {[%clk 0:02:50]}  Nd4 {[%clk 0:02:46]} 9. Nxd4 {[%clk 0:02:50]}  exd4 {[%clk 0:02:45]} 10. Qxh5 {[%clk 0:02:44]}  dxc3 {[%clk 0:02:45]} 11. bxc3 {[%clk 0:02:45]}  f5 {[%clk 0:02:44]} 12. g6 {[%clk 0:02:32]}  hxg6 {[%clk 0:02:42]} 13. Qxg6 {[%clk 0:02:32]}  Qe8 {[%clk 0:02:42]} 14. Qxe8 {[%clk 0:02:02]}  Rxe8 {[%clk 0:02:42]} 15. Bd2 {[%clk 0:01:35]}  fxe4 {[%clk 0:02:39]} 16. Be2 {[%clk 0:01:30]}  Rf8 {[%clk 0:02:33]} 17. Be3 {[%clk 0:01:28]}  Bf6 {[%clk 0:02:24]} 18. Kd2 {[%clk 0:01:28]}  Be5 {[%clk 0:02:23]} 19. Rag1 {[%clk 0:01:23]}  Bd7 {[%clk 0:02:21]} 20. Bg4 {[%clk 0:01:23]}  Bxg4 {[%clk 0:02:05]} 21. Rxg4 {[%clk 0:01:23]}  Rf5 {[%clk 0:02:02]} 22. Rxe4 {[%clk 0:01:22]}  Bf6 {[%clk 0:02:01]} 23. c4 {[%clk 0:01:20]}  b5 {[%clk 0:02:00]} 24. Kd3 {[%clk 0:01:05]}  bxc4+ {[%clk 0:01:59]} 25. Kxc4 {[%clk 0:01:06]}  Rb8 {[%clk 0:01:58]} 26. Rg1 {[%clk 0:00:48]}  Rb2 {[%clk 0:01:54]} 27. Bd4 {[%clk 0:00:44]}  Rxc2+ {[%clk 0:01:46]} 28. Kd3 {[%clk 0:00:44]}  Rxa2 {[%clk 0:01:42]} 29. Bxf6 {[%clk 0:00:33]}  Rxf6 {[%clk 0:01:41]} 30. Re8+ {[%clk 0:00:32]}  Kh7 {[%clk 0:01:37]} 31. Re7 {[%clk 0:00:31]}  Rg6 {[%clk 0:01:36]} 32. Rxg6 {[%clk 0:00:17]}  Kxg6 {[%clk 0:01:35]} 33. Rxc7 {[%clk 0:00:18]}  Rxf2 {[%clk 0:01:32]} 34. Rxa7 {[%clk 0:00:18]}  Rf3+ {[%clk 0:01:32]} 35. Ke4 {[%clk 0:00:17]}  Rxh3 {[%clk 0:01:31]} 36. Ra6 {[%clk 0:00:14]}  Rh4+ {[%clk 0:01:30]} 37. Kf3 {[%clk 0:00:12]}  Kf5 {[%clk 0:01:27]} 38. Rxd6 {[%clk 0:00:12]}  Ke5 {[%clk 0:01:22]} 39. Rd7 {[%clk 0:00:10]}  Rd4 {[%clk 0:01:20]} 40. Rxg7 {[%clk 0:00:09]}  Rxd5 {[%clk 0:01:20]} 41. Rg5+ {[%clk 0:00:09]}  Kd4 {[%clk 0:01:20]} 42. Rxd5+ {[%clk 0:00:10]}  Kxd5 {[%clk 0:01:20]} 1/2-1/2


[Site "https://www.chess.com"]

[Event "Titled Tuesday Blitz February 28 Late 2023"]
[White "Manelyuk, Daniil"]
[Black "Karamsetty, Jeevan"]
[WhiteFideId "44173920"]
[BlackFideId "2025337"]
[WhiteElo "2259"]
[BlackElo "2111"]
[Result "1-0"]
[Round "09"]
[TimeControl "180+2"]
[Date "2023.02.28"]
[WhiteClock "0:00:10"]
[BlackClock "0:00:05"]

1. e4 {[%clk 0:02:49]}  e5 {[%clk 0:02:59]} 2. Nf3 {[%clk 0:02:48]}  Nc6 {[%clk 0:02:58]} 3. Bb5 {[%clk 0:02:49]}  a6 {[%clk 0:02:58]} 4. Ba4 {[%clk 0:02:47]}  Nf6 {[%clk 0:02:58]} 5. O-O {[%clk 0:02:47]}  Be7 {[%clk 0:02:58]} 6. Re1 {[%clk 0:02:47]}  b5 {[%clk 0:02:59]} 7. Bb3 {[%clk 0:02:47]}  d6 {[%clk 0:02:59]} 8. c3 {[%clk 0:02:47]}  O-O {[%clk 0:02:57]} 9. h3 {[%clk 0:02:47]}  Na5 {[%clk 0:02:57]} 10. Bc2 {[%clk 0:02:47]}  c5 {[%clk 0:02:58]} 11. d4 {[%clk 0:02:48]}  Qc7 {[%clk 0:02:58]} 12. Nbd2 {[%clk 0:02:47]}  cxd4 {[%clk 0:02:56]} 13. cxd4 {[%clk 0:02:48]}  Nc6 {[%clk 0:02:56]} 14. d5 {[%clk 0:02:48]}  Nb4 {[%clk 0:02:56]} 15. Bb1 {[%clk 0:02:47]}  a5 {[%clk 0:02:57]} 16. a3 {[%clk 0:02:47]}  Na6 {[%clk 0:02:57]} 17. b4 {[%clk 0:02:47]}  Bd7 {[%clk 0:02:46]} 18. Qb3 {[%clk 0:02:31]}  axb4 {[%clk 0:02:40]} 19. axb4 {[%clk 0:02:28]}  Nc5 {[%clk 0:02:40]} 20. bxc5 {[%clk 0:02:28]}  Rxa1 {[%clk 0:02:39]} 21. c6 {[%clk 0:02:29]}  Bc8 {[%clk 0:02:31]} 22. Ba3 {[%clk 0:02:21]}  Qa7 {[%clk 0:02:14]} 23. Re3 {[%clk 0:02:05]}  Nh5 {[%clk 0:01:54]} 24. Qb2 {[%clk 0:02:01]}  Rxb1+ {[%clk 0:01:47]} 25. Nxb1 {[%clk 0:02:00]}  f5 {[%clk 0:01:44]} 26. Nc3 {[%clk 0:01:56]}  fxe4 {[%clk 0:01:39]} 27. Nxe4 {[%clk 0:01:57]}  Qc7 {[%clk 0:01:05]} 28. Nxe5 {[%clk 0:01:51]}  Nf4 {[%clk 0:00:51]} 29. Rg3 {[%clk 0:01:25]}  Nh5 {[%clk 0:00:34]} 30. Rf3 {[%clk 0:01:14]}  Bf5 {[%clk 0:00:31]} 31. Nd7 {[%clk 0:00:15]}  Bxe4 {[%clk 0:00:25]} 32. Rxf8+ {[%clk 0:00:16]}  Bxf8 {[%clk 0:00:24]} 33. Qe2 {[%clk 0:00:15]}  Bg6 {[%clk 0:00:17]} 34. Nxf8 {[%clk 0:00:07]}  Kxf8 {[%clk 0:00:17]} 35. Qe6 {[%clk 0:00:08]}  Bf7 {[%clk 0:00:03]} 36. Bxd6+ {[%clk 0:00:08]}  Kg8 {[%clk 0:00:04]} 37. Bxc7 {[%clk 0:00:08]}  Bxe6 {[%clk 0:00:05]} 38. dxe6 {[%clk 0:00:09]}  Nf6 {[%clk 0:00:05]} 39. Bd6 {[%clk 0:00:09]}  Ne8 {[%clk 0:00:05]} 40. Be5 {[%clk 0:00:08]}  b4 {[%clk 0:00:05]} 41. c7 {[%clk 0:00:08]}  Nxc7 {[%clk 0:00:05]} 42. Bxc7 {[%clk 0:00:09]}  b3 {[%clk 0:00:05]} 43. Be5 {[%clk 0:00:08]}  g6 {[%clk 0:00:05]} 44. Kf1 {[%clk 0:00:08]}  Kf8 {[%clk 0:00:06]} 45. Ke2 {[%clk 0:00:09]}  Ke7 {[%clk 0:00:07]} 46. Bb2 {[%clk 0:00:09]}  Kxe6 {[%clk 0:00:08]} 47. Kd3 {[%clk 0:00:10]}  Kd5 {[%clk 0:00:08]} 48. f4 {[%clk 0:00:09]}  Ke6 {[%clk 0:00:07]} 49. g4 {[%clk 0:00:09]}  Kf7 {[%clk 0:00:07]} 50. Ke4 {[%clk 0:00:10]}  Kg8 {[%clk 0:00:06]} 51. Ke5 {[%clk 0:00:10]}  Kg7 {[%clk 0:00:07]} 52. Ke6+ {[%clk 0:00:10]}  Kh6 {[%clk 0:00:07]} 53. Kf6 {[%clk 0:00:10]}  g5 {[%clk 0:00:05]} 54. fxg5# {[%clk 0:00:10]} 1-0


[Site "https://www.chess.com"]

[Event "Titled Tuesday Blitz February 28 Late 2023"]
[White "Klose, Eli"]
[Black "Mortazavi, Ali"]
[WhiteFideId "16242955"]
[BlackFideId "401323"]
[WhiteElo "2588"]
[BlackElo "2339"]
[Result "1-0"]
[Round "09"]
[TimeControl "180+2"]
[Date "2023.02.28"]
[WhiteClock "0:00:35"]
[BlackClock "0:00:02"]

1. e4 {[%clk 0:02:55]}  c6 {[%clk 0:02:59]} 2. Nc3 {[%clk 0:02:55]}  d5 {[%clk 0:02:59]} 3. g3 {[%clk 0:02:56]}  dxe4 {[%clk 0:02:58]} 4. Nxe4 {[%clk 0:02:57]}  h5 {[%clk 0:02:52]} 5. Bg2 {[%clk 0:02:56]}  h4 {[%clk 0:02:51]} 6. Ne2 {[%clk 0:02:52]}  Nd7 {[%clk 0:02:25]} 7. O-O {[%clk 0:02:50]}  Ndf6 {[%clk 0:02:17]} 8. Ng5 {[%clk 0:02:41]}  hxg3 {[%clk 0:01:55]} 9. hxg3 {[%clk 0:02:40]}  Nh6 {[%clk 0:01:30]} 10. d4 {[%clk 0:02:38]}  Bg4 {[%clk 0:01:18]} 11. c3 {[%clk 0:02:36]}  Qd7 {[%clk 0:01:18]} 12. Re1 {[%clk 0:02:32]}  e6 {[%clk 0:01:05]} 13. Bf4 {[%clk 0:02:25]}  Nd5 {[%clk 0:01:02]} 14. Qd2 {[%clk 0:02:23]}  O-O-O {[%clk 0:00:53]} 15. b4 {[%clk 0:02:12]}  Nxf4 {[%clk 0:00:41]} 16. Nxf4 {[%clk 0:02:07]}  Bd6 {[%clk 0:00:27]} 17. Ne4 {[%clk 0:02:06]}  g5 {[%clk 0:00:20]} 18. Nxd6+ {[%clk 0:02:00]}  Qxd6 {[%clk 0:00:20]} 19. Nd3 {[%clk 0:02:00]}  Nf5 {[%clk 0:00:18]} 20. Ne5 {[%clk 0:01:57]}  Bh5 {[%clk 0:00:15]} 21. g4 {[%clk 0:01:53]}  f6 {[%clk 0:00:15]} 22. Nc4 {[%clk 0:01:36]}  Qc7 {[%clk 0:00:12]} 23. gxf5 {[%clk 0:01:29]}  Bg4 {[%clk 0:00:09]} 24. fxe6 {[%clk 0:01:16]}  Qh2+ {[%clk 0:00:09]} 25. Kf1 {[%clk 0:01:17]}  Bh3 {[%clk 0:00:10]} 26. Bxh3 {[%clk 0:01:11]}  Qxh3+ {[%clk 0:00:07]} 27. Ke2 {[%clk 0:01:11]}  Qxe6+ {[%clk 0:00:05]} 28. Ne3 {[%clk 0:01:12]}  f5 {[%clk 0:00:05]} 29. Kd1 {[%clk 0:01:00]}  f4 {[%clk 0:00:05]} 30. Nc2 {[%clk 0:00:59]}  Qc4 {[%clk 0:00:04]} 31. Kc1 {[%clk 0:00:56]}  Rhe8 {[%clk 0:00:04]} 32. Kb2 {[%clk 0:00:55]}  f3 {[%clk 0:00:04]} 33. Rxe8 {[%clk 0:00:53]}  Rxe8 {[%clk 0:00:04]} 34. Re1 {[%clk 0:00:53]}  Re2 {[%clk 0:00:03]} 35. Rxe2 {[%clk 0:00:51]}  fxe2 {[%clk 0:00:04]} 36. Ne3 {[%clk 0:00:50]}  Qb5 {[%clk 0:00:03]} 37. a3 {[%clk 0:00:43]}  a5 {[%clk 0:00:03]} 38. c4 {[%clk 0:00:39]}  Qa4 {[%clk 0:00:02]} 39. bxa5 {[%clk 0:00:35]} 1-0


[Site "https://www.chess.com"]

[Event "Titled Tuesday Blitz February 28 Late 2023"]
[White "Rego, Pedro Filipe"]
[Black "Gadimbayli, Abdulla"]
[WhiteFideId "1904310"]
[BlackFideId "13404938"]
[WhiteElo "2193"]
[BlackElo "2390"]
[Result "0-1"]
[Round "09"]
[TimeControl "180+2"]
[Date "2023.02.28"]
[WhiteClock "0:01:08"]
[BlackClock "0:01:02"]

1. c4 {[%clk 0:03:00]}  Nf6 {[%clk 0:02:58]} 2. g3 {[%clk 0:03:00]}  g6 {[%clk 0:02:54]} 3. Bg2 {[%clk 0:03:00]}  Bg7 {[%clk 0:02:55]} 4. Nc3 {[%clk 0:03:00]}  O-O {[%clk 0:02:56]} 5. Nf3 {[%clk 0:03:00]}  d6 {[%clk 0:02:56]} 6. O-O {[%clk 0:03:00]}  Nc6 {[%clk 0:02:57]} 7. Rb1 {[%clk 0:03:00]}  e5 {[%clk 0:02:58]} 8. d3 {[%clk 0:03:00]}  h6 {[%clk 0:02:58]} 9. b4 {[%clk 0:03:00]}  Be6 {[%clk 0:02:58]} 10. b5 {[%clk 0:02:59]}  Nd4 {[%clk 0:02:53]} 11. Nxd4 {[%clk 0:02:55]}  exd4 {[%clk 0:02:54]} 12. Ne4 {[%clk 0:02:55]}  Nxe4 {[%clk 0:02:48]} 13. Bxe4 {[%clk 0:02:53]}  Qc8 {[%clk 0:02:48]} 14. f4 {[%clk 0:02:50]}  Bf5 {[%clk 0:02:42]} 15. Bg2 {[%clk 0:02:39]}  Re8 {[%clk 0:02:41]} 16. a4 {[%clk 0:02:30]}  Rb8 {[%clk 0:02:35]} 17. Bd2 {[%clk 0:02:16]}  Qe6 {[%clk 0:02:20]} 18. Bd5 {[%clk 0:02:13]}  Qxe2 {[%clk 0:02:20]} 19. Qxe2 {[%clk 0:02:09]}  Rxe2 {[%clk 0:02:21]} 20. Ba5 {[%clk 0:01:57]}  b6 {[%clk 0:02:18]} 21. Rbe1 {[%clk 0:01:44]}  Bxd3 {[%clk 0:02:17]} 22. Rxe2 {[%clk 0:01:36]}  Bxe2 {[%clk 0:02:18]} 23. Re1 {[%clk 0:01:34]}  d3 {[%clk 0:02:18]} 24. Bd2 {[%clk 0:01:29]}  Re8 {[%clk 0:02:17]} 25. a5 {[%clk 0:01:26]}  Bd4+ {[%clk 0:02:02]} 26. Kg2 {[%clk 0:01:25]}  Be3 {[%clk 0:02:02]} 27. Bxe3 {[%clk 0:01:21]}  Rxe3 {[%clk 0:02:03]} 28. axb6 {[%clk 0:01:20]}  cxb6 {[%clk 0:02:00]} 29. Kf2 {[%clk 0:01:20]}  Re7 {[%clk 0:01:02]} 30. Bf3 {[%clk 0:01:16]}  Bxf3 {[%clk 0:01:02]} 31. Rxe7 {[%clk 0:01:08]}  d2 {[%clk 0:01:02]} 0-1


[Site "https://www.chess.com"]

[Event "Titled Tuesday Blitz February 28 Late 2023"]
[White "Diaz Perez, Michel Alejandro"]
[Black "Kalajzic, Ivan"]
[WhiteFideId "3517179"]
[BlackFideId "14506378"]
[WhiteElo "2333"]
[BlackElo "2203"]
[Result "1-0"]
[Round "09"]
[TimeControl "180+2"]
[Date "2023.02.28"]
[WhiteClock "0:00:55"]
[BlackClock "0:00:01"]

1. Nf3 {[%clk 0:03:00]}  Nc6 {[%clk 0:02:56]} 2. c4 {[%clk 0:03:01]}  e5 {[%clk 0:02:56]} 3. Nc3 {[%clk 0:03:01]}  Bc5 {[%clk 0:02:54]} 4. e3 {[%clk 0:03:01]}  Nf6 {[%clk 0:02:51]} 5. a3 {[%clk 0:03:01]}  a5 {[%clk 0:02:45]} 6. Qc2 {[%clk 0:03:02]}  O-O {[%clk 0:02:42]} 7. Nd5 {[%clk 0:02:59]}  d6 {[%clk 0:02:27]} 8. Ng5 {[%clk 0:02:56]}  g6 {[%clk 0:02:10]} 9. h4 {[%clk 0:02:55]}  Bf5 {[%clk 0:01:51]} 10. Bd3 {[%clk 0:02:53]}  Bxd3 {[%clk 0:01:24]} 11. Qxd3 {[%clk 0:02:54]}  Nxd5 {[%clk 0:01:05]} 12. cxd5 {[%clk 0:02:55]}  Ne7 {[%clk 0:01:04]} 13. h5 {[%clk 0:02:55]}  Nf5 {[%clk 0:01:00]} 14. Nxh7 {[%clk 0:02:50]}  Kxh7 {[%clk 0:00:45]} 15. hxg6+ {[%clk 0:02:49]}  Kxg6 {[%clk 0:00:44]} 16. g4 {[%clk 0:02:48]}  Qd7 {[%clk 0:00:36]} 17. gxf5+ {[%clk 0:02:46]}  Kf6 {[%clk 0:00:33]} 18. b3 {[%clk 0:02:36]}  Rh8 {[%clk 0:00:31]} 19. Rf1 {[%clk 0:02:23]}  Qxf5 {[%clk 0:00:30]} 20. Qxf5+ {[%clk 0:02:23]}  Kxf5 {[%clk 0:00:31]} 21. d3 {[%clk 0:02:17]}  e4 {[%clk 0:00:27]} 22. Ke2 {[%clk 0:02:16]}  Rae8 {[%clk 0:00:22]} 23. Bb2 {[%clk 0:02:15]}  Rh2 {[%clk 0:00:21]} 24. dxe4+ {[%clk 0:01:45]}  Rxe4 {[%clk 0:00:19]} 25. Kd3 {[%clk 0:01:42]}  c6 {[%clk 0:00:16]} 26. dxc6 {[%clk 0:01:41]}  bxc6 {[%clk 0:00:16]} 27. Rac1 {[%clk 0:01:35]}  Rhh4 {[%clk 0:00:05]} 28. Rg1 {[%clk 0:01:14]}  Ke6 {[%clk 0:00:05]} 29. Rh1 {[%clk 0:01:08]}  Kd7 {[%clk 0:00:05]} 30. Rcg1 {[%clk 0:01:04]}  Rxh1 {[%clk 0:00:04]} 31. Rxh1 {[%clk 0:01:04]}  Re6 {[%clk 0:00:03]} 32. Rh7 {[%clk 0:01:04]}  Re7 {[%clk 0:00:03]} 33. a4 {[%clk 0:01:03]}  d5 {[%clk 0:00:02]} 34. Bc3 {[%clk 0:01:03]}  Bb4 {[%clk 0:00:01]} 35. Bd4 {[%clk 0:00:59]}  c5 {[%clk 0:00:02]} 36. Bb2 {[%clk 0:00:59]}  Kc6 {[%clk 0:00:02]} 37. Rh6+ {[%clk 0:00:59]}  Re6 {[%clk 0:00:02]} 38. Rh8 {[%clk 0:00:59]}  c4+ {[%clk 0:00:02]} 39. bxc4 {[%clk 0:00:59]}  dxc4+ {[%clk 0:00:02]} 40. Kxc4 {[%clk 0:01:00]}  Re4+ {[%clk 0:00:02]} 41. Kb3 {[%clk 0:00:58]}  Rg4 {[%clk 0:00:02]} 42. Rh7 {[%clk 0:00:58]}  f5 {[%clk 0:00:01]} 43. Rf7 {[%clk 0:00:55]} 1-0


[Site "https://www.chess.com"]